Workbook

Sheet MSU
B1: Juho Ranto | E1: 9.3.1987 Oulu
B2: SUPERPESIS | E2: Runkosarja | I2: Kärkilyönnit (KL), pesänvälit | P2: Runkosarja TOP-30 | U2: Ylempi loppusarja | AB2: Ylempi loppusarja TOP-10 | AG2: Play off, voitot, voittoprosentti | AL2: Arvo-ottelut | AO2: Mitalit
B3: Vuosi | C3: Sija | D3: Seura | E3: OTT | F3: KUN | G3: LÖI | H3: TOI | I3: KL | J3: 0 > 1 | K3: 1 > 2 | L3: 2 > 3 | M3: 3 > k | N3: KL-% | P3: LÖI | Q3: TOI | R3: L+T | S3: KL | U3: OTT | V3: KUN | W3: LÖI | X3: TOI | Y3: KL | Z3: KL-% | AB3: LÖI | AC3: TOI | AD3: L+T | AE3: KL | AG3: Puolivälierät | AH3: Välierät | AI3: Pronssi | AJ3: Finaalit | AL3: IL | AM3: LL | AN3: hSM | AO3: K | AP3: H | AQ3: P
B4: 2004 | C4: 9. | D4: KylKai | F4: suomensarja
B5: 2005 | C5: 11. | D5: KoU | E5: 3 | F5: 0 | G5: 0 | H5: 3 | I5: 3 | J5: 3 | K5: 0 | L5: 0 | M5: 0 | N5: 33.3 % | O5: =PRODUCT(I5/N5) -> 9.009009009
B6: 2006 | C6: 11. | D6: KaKa | F6: ykköspesis | O6: 0
B7: 2006 | C7: 6. | D7: KoU | E7: 8 | F7: 0 | G7: 1 | H7: 2 | I7: 10 | J7: 8 | K7: 0 | L7: 1 | M7: 1 | N7: 38.5 % | O7: =PRODUCT(I7/N7) -> 25.97402597
B8: 2007 | C8: 7. | D8: YKV | F8: ykköspesis | O8: 0
B9: 2007 | C9: 3. | D9: KoU | E9: 1 | F9: 0 | G9: 0 | H9: 0 | I9: 0 | J9: 0 | K9: 0 | L9: 0 | M9: 0 | N9: 0.0 % | O9: 0 | AQ9: 1
B10: 2008 | C10: 11. | D10: VM | F10: ykköspesis | O10: 0
B11: 2008 | C11: 5. | D11: YKV | F11: ykköspesis | O11: 0
B12: 2008 | C12: 11. | D12: KoU | E12: 17 | F12: 0 | G12: 0 | H12: 2 | I12: 32 | J12: 29 | K12: 2 | L12: 1 | M12: 0 | N12: 43.2 % | O12: =PRODUCT(I12/N12) -> 74.07407407
B13: 2009 | C13: 6. | D13: KoU | E13: 21 | F13: 0 | G13: 0 | H13: 7 | I13: 43 | J13: 40 | K13: 2 | L13: 1 | M13: 0 | N13: 42.6 % | O13: =PRODUCT(I13/N13) -> 100.9389671 | U13: 6 | V13: 0 | W13: 0 | X13: 4 | Y13: 16 | Z13: 59.3 % | AG13: 2-4 ViVe
B14: 2010 | C14: 7. | D14: KoU | E14: 19 | F14: 2 | G14: 2 | H14: 8 | I14: 31 | J14: 15 | K14: 8 | L14: 4 | M14: 4 | N14: 38.8 % | O14: 0 | U14: 3 | V14: 0 | W14: 0 | X14: 0 | Y14: 2 | Z14: 18.2 % | AG14: 0-3 ViVe
B15: 2011 | C15: 4. | D15: SMJ | F15: ykköspesis | O15: 0
B16: 2011 | C16: 5. | D16: KoU | E16: 14 | F16: 0 | G16: 2 | H16: 6 | I16: 29 | J16: 23 | K16: 3 | L16: 1 | M16: 2 | N16: 43.9 % | O16: =PRODUCT(I16/N16) -> 66.05922551 | U16: 3 | V16: 0 | W16: 0 | X16: 4 | Y16: 9 | Z16: 60.0 % | AG16: 2-4 KPL
B17: 2012 | C17: 2. | D17: SMJ | F17: ykköspesis | O17: 0
B18: 2013 | C18: 8. | D18: JymyJussit 2 | F18: ykköspesis | O18: 0
B19: 2013 | C19: 7. | D19: JymyJussit | E19: 5 | F19: 0 | G19: 0 | H19: 2 | I19: 13 | J19: 9 | K19: 1 | L19: 3 | M19: 0 | N19: 54.2 % | O19: =PRODUCT(I19/N19) -> 23.98523985
B20: 2014 | C20: 11. | D20: YPJ | F20: ykköspesis
B21: 2015 | C21: 6. | D21: UPV | F21: ykköspesis
B22: 2016 | C22: 6. | D22: UPV | F22: ykköspesis
B23: 2017 | C23: 10. | D23: UPV | F23: ykköspesis
B24: 2018 | C24: 8. | D24: UPV | F24: ykköspesis
B25: Yhteensä | E25: =SUM(E4:E24) -> 88 | F25: 2 | G25: 5 | H25: 30 | I25: 161 | J25: 127 | K25: 16 | L25: 11 | M25: 7 | N25: 42.3 % | O25: =SUM(O5:O24) -> 300.0405416 | P25: 0-0-0 | Q25: 0-0-0 | R25: 0-0-0 | S25: 0-0-0 | U25: =SUM(U13:U16) -> 12 | V25: =SUM(V13:V16) -> 0 | W25: =SUM(W13:W16) -> 0 | X25: =SUM(X13:X16) -> 8 | Y25: =SUM(Y13:Y16) -> 27 | Z25: =PRODUCT(N31) -> 50.9 % | AA25: =SUM(AA4:AA24) -> 0.0 % | AB25: 0-0-0 | AC25: 0-0-0 | AD25: 0-0-0 | AE25: 0-0-0 | AG25: 0/3 | AH25: 0/0 | AI25: 0/0 | AJ25: 0/0 | AL25: =SUM(AL4:AL24) -> 0 | AM25: 0 | AN25: 0 | AO25: 0 | AP25: 0 | AQ25: 1
AG26: 0.0 % | AH26: 0.0 % | AI26: 0.0 % | AJ26: 0.0 %
B27: Pesispörssi | D27: =SUM(F25:H25)+((I25-F25-G25)/3)+(E25/3)+(AL25*25)+(AM25*25)+(AN25*10)+(AO25*25)+(AP25*20)+(AQ25*15)-15 -> 117.7
B29: URA SUPERISSA | E29: OTT | F29: KUN | G29: LÖI | H29: TOI | I29: KL | K29: ka/L | L29: ka/T | M29: ka/KL | N29: KL-% | P29: ENSIMMÄISET RUNKOSARJASSA | AG29: ENSIMMÄISET PUDOTUSPELEISSÄ | AL29: YLEISÖ
B30: Runkosarja | E30: =PRODUCT(E25) -> 88 | F30: =PRODUCT(F25) -> 2 | G30: =PRODUCT(G25) -> 5 | H30: =PRODUCT(H25) -> 30 | I30: =PRODUCT(I25) -> 161 | K30: =PRODUCT((F30+G30)/E30) -> 0.08 | L30: =PRODUCT(H30/E30) -> 0.34 | M30: =PRODUCT(I30/E30) -> 1.83 | N30: =PRODUCT(N25) -> 42.3 % | O30: =PRODUCT(O25) -> 300.0405416 | P30: Ottelu | R30: 05.06. 2005 KoU- SoJy 2-1 (3-5, 2-0, 2-1) | Z30: 1. ottelu | AC30: 18 v 1 kk 26 pv | AG30: Ottelu | AH30: 1. 09.08. 2009 ViVe - KoU 2-0 | AL30: 3305 | AN30: 22 v 5 kk 0 pv
B31: Ylempi loppusarja | E31: =SUM(U25) -> 12 | F31: 0 | G31: 0 | H31: 8 | I31: 27 | K31: =PRODUCT((F31+G31)/E31) -> 0.00 | L31: =PRODUCT(H31/E31) -> 0.67 | M31: =PRODUCT(I31/E31) -> 2.25 | N31: =PRODUCT(I31/O31) -> 50.9 % | O31: 53 | P31: Lyöty | R31: 18.07. 2006 KoU - KiPa 1-0 (0-0, 3-2) | Z31: 10. ottelu | AC31: 19 v 4 kk 9 pv | AG31: Lyöty
B32: Alempi loppusarja | E32: 8 | F32: 0 | G32: 2 | H32: 3 | I32: 17 | K32: =PRODUCT((F32+G32)/E32) -> 0.25 | L32: =PRODUCT(H32/E32) -> 0.38 | M32: =PRODUCT(I32/E32) -> 2.13 | N32: =PRODUCT(I32/O32) -> 40.5 % | O32: 42 | P32: Tuotu | R32: 05.06. 2005 KoU- SoJy 2-1 (3-5, 2-0, 2-1) | Z32: 1. ottelu | AC32: 18 v 1 kk 26 pv | AG32: Tuotu | AH32: 1. 09.08. 2009 ViVe - KoU 2-0 | AL32: 3305 | AN32: 22 v 5 kk 0 pv
B33: KAIKKI | E33: =SUM(E30:E32) -> 108 | F33: =SUM(F30:F32) -> 2 | G33: =SUM(G30:G32) -> 7 | H33: =SUM(H30:H32) -> 41 | I33: =SUM(I30:I32) -> 205 | K33: =PRODUCT((F33+G33)/E33) -> 0.08 | L33: =PRODUCT(H33/E33) -> 0.38 | M33: =PRODUCT(I33/E33) -> 1.90 | N33: =PRODUCT(I33/O33) -> 51.9 % | O33: =SUM(O30:O32) -> 395.0405416 | P33: Kunnari | R33: 06.06. 2010 NJ - KoU 0-2 (3-5, 2-4) | Z33: 53. ottelu | AC33: 23 v 2 kk 28 pv | AG33: Kunnari
B35: Seurat | D35: KoU = Koskenkorvan Urheilijat (1945), kasvattajaseura | M35: YK = Ylivieskan Kuula (1909) | U35: JymyJussit = Seinäjoen JymyJussit (2012)
D36: KylKai = Kylävuoren Kaiku (1993) | M36: VM = Vaasan Maila (1933) | U36: YPJ = Ylihärmän Pesis-Junkkarit (1996)
D37: KaKa = Kauhajoen Karhu (1910) | M37: SMJ = Seinäjoen Maila-Jussit (1932) | U37: UPV = Ulvilan Pesä-Veikot (1957)

Sheet MYP, MSS
B1: Juho Ranto | E1: 9.3.1987 Oulu
B2: YKKÖSPESIS | E2: Runkosarja | L2: Runkosarja TOP-10 | Q2: Jatkosarjat | X2: SUOMENSARJA | AA2: Runkosarja | AH2: Runkosarja TOP-10 | AM2: Jatkosarjat
B3: Vuosi | C3: Sija | D3: Seura | E3: OTT | F3: KUN | G3: LÖI | H3: TOI | I3: KL | J3: KL-% | L3: LÖI | M3: TOI | N3: L+T | O3: KL | Q3: OTT | R3: KUN | S3: LÖI | T3: TOI | U3: KL | V3: KL-% | X3: Vuosi | Y3: Sija | Z3: Seura | AA3: OTT | AB3: KUN | AC3: LÖI | AD3: TOI | AE3: KL | AF3: KL-% | AH3: LÖI | AI3: TOI | AJ3: L+T | AK3: KL | AM3: OTT | AN3: KUN | AO3: LÖI | AP3: TOI | AQ3: KL | AR3: KL-%
X4: 2004 | Y4: 9. | Z4: KylKai | AA4: 15 | AB4: 0 | AC4: 2 | AD4: 10 | AE4: 54 | AF4: 53.5 % | AG4: 101
B6: 2006 | C6: 11. | D6: KaKa | E6: 5 | F6: 0 | G6: 0 | H6: 1 | I6: 13 | J6: 41.9 % | K6: 31 | X6: 2006 | Y6: 7. | Z6: KoU 2 | AA6: 7 | AB6: 0 | AC6: 7 | AD6: 14 | AE6: 46 | AF6: 67.6 % | AG6: 68
B7: 2007 | C7: 7. | D7: YKV | E7: 17 | F7: 1 | G7: 4 | H7: 18 | I7: 84 | J7: 62.2 % | K7: 135 | X7: 2018 | Y7: 8. | Z7: UPV | AA7: 4 | AB7: 1 | AC7: 0 | AD7: 5 | AE7: 13 | AF7: 46.4 % | AG7: 28
B8: 2008 | C8: 11. | D8: VM | E8: 1 | F8: 0 | G8: 0 | H8: 1 | I8: 3 | J8: 100.0 % | K8: 3
B9: 2008 | C9: 5. | D9: YKV | E9: 2 | F9: 0 | G9: 0 | H9: 2 | I9: 7 | J9: 63.6 % | K9: 11
B10: 2011 | C10: 4. | D10: SMJ | E10: 10 | F10: 2 | G10: 5 | H10: 13 | I10: 33 | J10: 57.9 % | K10: 57
B11: 2012 | C11: 2. | D11: SMJ | E11: 19 | F11: 1 | G11: 4 | H11: 13 | I11: 59 | J11: 47.6 % | K11: 124 | Q11: 3 | R11: 0 | S11: 0 | T11: 2 | U11: 14 | V11: 63.6 % | W11: 22
B12: 2013 | C12: 8. | D12: JymyJussit 2 | E12: 16 | F12: 1 | G12: 5 | H12: 26 | I12: 74 | J12: 61.2 % | K12: 121
B13: 2014 | C13: 11. | D13: YPJ | E13: 17 | F13: 0 | G13: 4 | H13: 13 | I13: 55 | J13: 54.5 % | K13: 101 | Q13: 4 | R13: 0 | S13: 0 | T13: 5 | U13: 18 | V13: 64.7 % | W13: 17
B14: 2015 | C14: 6. | D14: UPV | E14: 22 | F14: 1 | G14: 0 | H14: 23 | I14: 94 | J14: 59.9 % | K14: 157
B15: 2016 | C15: 6. | D15: UPV | E15: 20 | F15: 0 | G15: 2 | H15: 29 | I15: 68 | J15: 56.2 % | K15: 121
B16: 2017 | C16: 10. | D16: 10. | E16: 16 | F16: 0 | G16: 3 | H16: 16 | I16: 49 | J16: 55.7 % | K16: 88
B17: 2018 | C17: 8. | D17: UPV | E17: 4 | F17: 1 | G17: 0 | H17: 5 | I17: 13 | J17: 46.4 % | K17: 28
B18: YHTEENSÄ | E18: =SUM(E4:E17) -> 149 | F18: =SUM(F4:F17) -> 7 | G18: =SUM(G4:G17) -> 27 | H18: =SUM(H4:H17) -> 160 | I18: =SUM(I4:I17) -> 552 | J18: =PRODUCT(I18/K18) -> 56.5 % | K18: =SUM(K4:K17) -> 977 | Q18: =SUM(Q4:Q17) -> 7 | R18: =SUM(R4:R17) -> 0 | S18: =SUM(S4:S17) -> 0 | T18: =SUM(T4:T17) -> 7 | U18: =SUM(U4:U17) -> 32 | V18: =PRODUCT(U18/W18) -> 82.1 % | W18: =SUM(W4:W17) -> 39 | X18: YHTEENSÄ | AA18: =SUM(AA4:AA17) -> 26 | AB18: =SUM(AB4:AB17) -> 1 | AC18: =SUM(AC4:AC17) -> 9 | AD18: =SUM(AD4:AD17) -> 29 | AE18: =SUM(AE4:AE17) -> 113 | AF18: =PRODUCT(AE18/AG18) -> 57.4 % | AG18: =SUM(AG4:AG17) -> 197 | AM18: =SUM(AM4:AM17) -> 0 | AN18: =SUM(AN4:AN17) -> 0 | AO18: =SUM(AO4:AO17) -> 0 | AP18: =SUM(AP4:AP17) -> 0 | AQ18: =SUM(AQ4:AQ17) -> 0 | AR18: 0.0 % | AS18: =SUM(AS4:AS17) -> 0
B20: KAIKKI OTTELUT | E20: OTT | F20: KUN | G20: LÖI | H20: TOI | I20: KL | J20: KL-% | L20: ka/L | M20: ka/T | N20: ka/l+t | O20: ka/kl | R20: Seurat | T20: KoU = Koskenkorvan Urheilijat (1945), kasvattajaseura
B21: SUPERPESIS | E21: 108 | F21: 2 | G21: 7 | H21: 41 | I21: 205 | J21: 51.9 % | K21: =PRODUCT(I21/J21) -> 394.9903661 | L21: =PRODUCT((F21+G21)/E21) -> 0.08 | M21: =PRODUCT(H21/E21) -> 0.38 | N21: =PRODUCT((F21+G21+H21)/E21) -> 0.46 | O21: =PRODUCT(I21/E21) -> 1.90 | T21: KylKai = Kylävuoren Kaiku (1993)
B22: YKKÖSPESIS | E22: =PRODUCT(E18+Q18) -> 156 | F22: =PRODUCT(F18+R18) -> 7 | G22: =PRODUCT(G18+S18) -> 27 | H22: =PRODUCT(H18+T18) -> 167 | I22: =PRODUCT(I18+U18) -> 584 | J22: =PRODUCT(I22/K22) -> 57.5 % | K22: =PRODUCT(K18+W18) -> 1016 | L22: =PRODUCT((F22+G22)/E22) -> 0.22 | M22: =PRODUCT(H22/E22) -> 1.07 | N22: =PRODUCT((F22+G22+H22)/E22) -> 1.29 | O22: =PRODUCT(I22/E22) -> 3.74 | T22: KaKa = Kauhajoen Karhu (1910)
B23: SUOMENSARJA | E23: =PRODUCT(AA18+AM18) -> 26 | F23: =PRODUCT(AB18+AN18) -> 1 | G23: =PRODUCT(AC18+AO18) -> 9 | H23: =PRODUCT(AD18+AP18) -> 29 | I23: =PRODUCT(AE18+AQ18) -> 113 | J23: =PRODUCT(I23/K23) -> 57.4 % | K23: =PRODUCT(AG18+AS18) -> 197 | L23: =PRODUCT((F23+G23)/E23) -> 0.38 | M23: =PRODUCT(H23/E23) -> 1.12 | N23: =PRODUCT((F23+G23+H23)/E23) -> 1.50 | O23: =PRODUCT(I23/E23) -> 4.35 | T23: YK = Ylivieskan Kuula (1909)
B24: YHTEENSÄ | E24: =SUM(E21:E23) -> 290 | F24: =SUM(F21:F23) -> 10 | G24: 43 | H24: 237 | I24: 902 | J24: =PRODUCT(I24/K24) -> 56.1 % | K24: =SUM(K21:K23) -> 1607.990366 | L24: =PRODUCT((F24+G24)/E24) -> 0.18 | M24: =PRODUCT(H24/E24) -> 0.82 | N24: =PRODUCT((F24+G24+H24)/E24) -> 1.00 | O24: =PRODUCT(I24/E24) -> 3.11 | T24: VM = Vaasan Maila (1933)
T25: SMJ = Seinäjoen Maila-Jussit (1932)
T26: JymyJussit = Seinäjoen JymyJussit (2012)
T27: YPJ = Ylihärmän Pesis-Junkkarit (1996)
T28: UPV = Ulvilan Pesä-Veikot (1957)

Sheet Arvo-ottelut
B1: ITÄ - LÄNSI - KORTTI
B2: Juho Ranto | C2: 9.3.1987 Oulu
B3: B - POJAT | C3: Itä - Länsi, tulos | D3: Joukkue | E3: Seura | G3: V | H3: T | I3: H | J3: Up. | K3: Lj. | L3: Palk. | M3: O | N3: K | O3: L | P3: T | Q3: KL | R3: 1 | S3: 2 | T3: 3 | U3: k | V3: KL-% | W3: Pelinjohtaja | X3: Yleisöä
B4: 18.06. 2004 Hyvinkää | C4: 2-0 (3-0, 13-6) | D4: Länsi | E4: KoU | I4: 1 | K4: jok | M4: 1 | P4: 1 | Q4: 4/5 | R4: 4/5 | V4: 80.0 % | W4: Erkki Seppälä | X4: 630
B5: 02.07. 2005 Oulu | C5: 0-1 (4-4, 0-1) | D5: Länsi | E5: KoU | G5: 1 | J5: 2k | K5: 1 | M5: 1 | Q5: 0/4 | R5: 0/3 | S5: 0/1 | V5: 0.0 % | W5: Tommi Joensuu | X5: 1318
B6: Yhteensä | G6: =SUM(G2:G5) -> 1 | M6: =SUM(M2:M5) -> 2 | P6: 1 | Q6: 4/9 | R6: 4/8 | S6: 0/1 | V6: 44.4 %
B8: A - POJAT | C8: Itä - Länsi, tulos | D8: Joukkue | E8: Seura | G8: V | H8: T | I8: H | J8: Up. | K8: Lj. | L8: Palk. | M8: O | N8: K | O8: L | P8: T | Q8: KL | R8: 1 | S8: 2 | T8: 3 | U8: k | V8: KL-% | W8: Pelinjohtaja | X8: Yleisöä
B9: 29.06. 2007 Kouvola | C9: 2-0 (6-5, 4-1) | D9: Länsi | E9: KoU | I9: 1 | J9: 3v | K9: 9 | M9: 1 | Q9: 2/4 | R9: 2/4 | V9: 50.0 % | W9: Sami-Petteri Kivimäki | X9: 2318
B10: 27.06. 2008 Raahe | C10: 2-1 (0-3, 3-2, 1-1, 3-2) | D10: Länsi | E10: KoU | I10: 1 | J10: s | K10: 9 | M10: 1 | O10: 1 | Q10: 1/2 | T10: 0/1 | U10: 1/1 | V10: 50.0 % | W10: Teppo Peltomäki | X10: 2147
B11: Yhteensä | G11: =SUM(G7:G10) -> 0 | M11: =SUM(M7:M10) -> 2 | P11: 0 | Q11: 3/6 | R11: 2/4 | T11: 0/1 | U11: 1/1 | V11: 50.0 %

Sheet Kärkilyönnit
B1: KÄRKILYÖNNIT RUNKOSARJASSA | V1: VUOSITTAISET SIJOITUKSET TOP - 30
G2: 0 > 1 | J2: 1 > 2 | M2: 2 > 3 | P2: 3 > k | S2: Yhteensä
B3: Vuosi | C3: Sija | D3: Seura | E3: OTT | F3: KL | G3: YHT | H3: % | I3: KL | J3: YHT | K3: % | L3: KL | M3: YHT | N3: % | O3: KL | P3: YHT | Q3: % | R3: KL | S3: YHT | T3: % | V3: Vuosi | W3: Sija | X3: Seura | Y3: 0 > 1 | Z3: 1 > 2 | AA3: 2 > 3 | AB3: 3 > k | AC3: KL
B4: 2005 | C4: 9. | D4: KoU | E4: 3 | F4: 3 | G4: 8 | H4: 37.5 % | I4: 0 | J4: 0 | K4: 0.0 % | L4: 0 | M4: 0 | N4: 0.0 % | O4: 0 | P4: 1 | Q4: 0.0 % | R4: 3 | S4: 9 | T4: 33.3 % | V4: 2005 | W4: 9. | X4: KoU
B5: 2006 | C5: 8. | D5: KoU | E5: 8 | F5: 8 | G5: 24 | H5: 33.3 % | I5: 0 | J5: 0 | K5: 0.0 % | L5: 1 | M5: 1 | N5: 100.0 % | O5: 1 | P5: 1 | Q5: 100.0 % | R5: 10 | S5: 26 | T5: 38.5 % | V5: 2006 | W5: 8. | X5: KoU
B6: 2007 | C6: 5. | D6: KoU | E6: 1 | F6: 0 | G6: 1 | H6: 0.0 % | I6: 0 | J6: 0 | K6: 0.0 % | L6: 0 | M6: 0 | N6: 0.0 % | O6: 0 | P6: 0 | Q6: 0.0 % | R6: 0 | S6: 1 | T6: 0.0 % | V6: 2007 | W6: 5. | X6: KoU
B7: 2008 | C7: 11. | D7: KoU | E7: 17 | F7: 29 | G7: 65 | H7: 44.6 % | I7: 2 | J7: 2 | K7: 100.0 % | L7: 1 | M7: 6 | N7: 16.7 % | O7: 0 | P7: 1 | Q7: 0.0 % | R7: 32 | S7: 74 | T7: 43.2 % | V7: 2008 | W7: 11. | X7: KoU
B8: 2009 | C8: 6. | D8: KoU | E8: 21 | F8: 40 | G8: 88 | H8: 45.5 % | I8: 2 | J8: 6 | K8: 33.3 % | L8: 1 | M8: 5 | N8: 20.0 % | O8: 0 | P8: 2 | Q8: 0.0 % | R8: 43 | S8: 101 | T8: 42.6 % | V8: 2009 | W8: 6. | X8: KoU | Y8: 21.
B9: 2010 | C9: 7. | D9: KoU | E9: 19 | F9: 15 | G9: 37 | H9: 40.5 % | I9: 8 | J9: 27 | K9: 29.6 % | L9: 4 | M9: 10 | N9: 40.0 % | O9: 4 | P9: 6 | Q9: 66.7 % | R9: 31 | S9: 80 | T9: 38.8 % | V9: 2010 | W9: 7. | X9: KoU
B10: 2011 | C10: 5. | D10: KoU | E10: 14 | F10: 23 | G10: 56 | H10: 41.1 % | I10: 3 | J10: 7 | K10: 42.9 % | L10: 1 | M10: 1 | N10: 100.0 % | O10: 2 | P10: 2 | Q10: 100.0 % | R10: 29 | S10: 66 | T10: 43.9 % | V10: 2011 | W10: 5. | X10: KoU
B11: 2012 | V11: 2012
B12: 2013 | C12: 7. | D12: JymyJussit | E12: 5 | F12: 9 | G12: 19 | H12: 47.4 % | I12: 1 | J12: 1 | K12: 100.0 % | L12: 3 | M12: 3 | N12: 100.0 % | O12: 0 | P12: 1 | Q12: 0.0 % | R12: 13 | S12: 24 | T12: 54.2 % | V12: 2013 | W12: 7. | X12: JymyJussit
B13: Yhteensä | E13: =SUM(E4:E12) -> 88 | F13: =SUM(F4:F12) -> 127 | G13: =SUM(G4:G12) -> 298 | H13: =PRODUCT(F13/G13) -> 42.6 % | I13: =SUM(I4:I12) -> 16 | J13: =SUM(J4:J12) -> 43 | K13: =PRODUCT(I13/J13) -> 37.2 % | L13: =SUM(L4:L12) -> 11 | M13: =SUM(M4:M12) -> 26 | N13: =PRODUCT(L13/M13) -> 42.3 % | O13: =SUM(O4:O12) -> 7 | P13: =SUM(P4:P12) -> 14 | Q13: =PRODUCT(O13/P13) -> 50.0 % | R13: =SUM(R4:R12) -> 161 | S13: =SUM(S4:S12) -> 381 | T13: =PRODUCT(R13/S13) -> 42.3 %
B15: KÄRKILYÖNNIT YLEMMISSÄ PUDOTUSPELEISSÄ | V15: VUOSITTAISET SIJOITUKSET TOP - 30
G16: 0 > 1 | J16: 1 > 2 | M16: 2 > 3 | P16: 3 > k | S16: Yhteensä
B17: Vuosi | C17: Sija | D17: Seura | E17: OTT | F17: KL | G17: YHT | H17: % | I17: KL | J17: YHT | K17: % | L17: KL | M17: YHT | N17: % | O17: KL | P17: YHT | Q17: % | R17: KL | S17: YHT | T17: % | V17: Vuosi | W17: Sija | X17: Seura | Y17: 0 > 1 | Z17: 1 > 2 | AA17: 2 > 3 | AB17: 3 > k | AC17: KL
B18: 2005 | C18: 11. | D18: KoU | V18: 2005 | W18: 11. | X18: KoU
B19: 2006 | C19: 6. | D19: KoU | V19: 2006 | W19: 6. | X19: KoU
B20: 2007 | C20: 3. | D20: KoU | V20: 2007 | W20: 3. | X20: KoU
B21: 2008 | C21: 11. | D21: KoU | V21: 2008 | W21: 11. | X21: KoU
B22: 2009 | C22: 6. | D22: KoU | E22: 6 | F22: 16 | G22: 25 | H22: 64.0 % | I22: 0 | J22: 0 | K22: 0.0 % | L22: 0 | M22: 1 | N22: 0.0 % | O22: 0 | P22: 1 | Q22: 0.0 % | R22: 16 | S22: 27 | T22: 59.3 % | V22: 2009 | W22: 6. | X22: KoU | Y22: 15.
B23: 2010 | C23: 7. | D23: KoU | E23: 3 | F23: 0 | G23: 2 | H23: 0.0 % | I23: 2 | J23: 9 | K23: 22.2 % | L23: 0 | M23: 0 | N23: 0.0 % | O23: 0 | P23: 0 | Q23: 0.0 % | R23: 2 | S23: 11 | T23: 18.2 % | V23: 2010 | W23: 7. | X23: KoU
B24: 2011 | C24: 5. | D24: KoU | E24: 3 | F24: 6 | G24: 12 | H24: 50.0 % | I24: 1 | J24: 1 | K24: 100.0 % | L24: 2 | M24: 2 | N24: 100.0 % | O24: 0 | P24: 0 | Q24: 0.0 % | R24: 9 | S24: 15 | T24: 60.0 % | V24: 2011 | W24: 5. | X24: KoU
B25: 2012 | V25: 2012
B26: 2013 | C26: 7. | D26: JymyJussit | V26: 2013 | W26: 7. | X26: JymyJussit
B27: Yhteensä | E27: =SUM(E16:E26) -> 12 | F27: =SUM(F18:F26) -> 22 | G27: =SUM(G18:G26) -> 39 | H27: =PRODUCT(F27/G27) -> 56.4 % | I27: =SUM(I18:I26) -> 3 | J27: =SUM(J18:J26) -> 10 | K27: =PRODUCT(I27/J27) -> 30.0 % | L27: =SUM(L18:L26) -> 2 | M27: =SUM(M18:M26) -> 3 | N27: =PRODUCT(L27/M27) -> 66.7 % | O27: =SUM(O18:O26) -> 0 | P27: =SUM(P18:P26) -> 1 | Q27: =PRODUCT(O27/P27) -> 0.0 % | R27: =SUM(R18:R26) -> 27 | S27: =SUM(S18:S26) -> 53 | T27: =PRODUCT(R27/S27) -> 50.9 %
B29: KÄRKILYÖNNIT
G30: 0 > 1 | J30: 1 > 2 | M30: 2 > 3 | P30: 3 > k | S30: Yhteensä
E31: OTT | F31: KL | G31: YHT | H31: % | I31: KL | J31: YHT | K31: % | L31: KL | M31: YHT | N31: % | O31: KL | P31: YHT | Q31: % | R31: KL | S31: YHT | T31: %
B32: RUNKOSARJA | E32: =PRODUCT(E13) -> 88 | F32: =PRODUCT(F13) -> 127 | G32: =PRODUCT(G13) -> 298 | H32: =PRODUCT(H13) -> 42.6 % | I32: =PRODUCT(I13) -> 16 | J32: =PRODUCT(J13) -> 43 | K32: =PRODUCT(K13) -> 37.2 % | L32: =PRODUCT(L13) -> 11 | M32: =PRODUCT(M13) -> 26 | N32: =PRODUCT(N13) -> 42.3 % | O32: =PRODUCT(O13) -> 7 | P32: =PRODUCT(P13) -> 14 | Q32: =PRODUCT(Q13) -> 50.0 % | R32: =PRODUCT(R13) -> 161 | S32: =PRODUCT(S13) -> 381 | T32: =PRODUCT(T13) -> 42.3 %
B33: PLAY OFF | E33: =PRODUCT(E27) -> 12 | F33: =PRODUCT(F27) -> 22 | G33: 39 | H33: 56.4 % | I33: 3 | J33: 10 | K33: 30.0 % | L33: 2 | M33: 3 | N33: 66.7 % | O33: 0 | P33: 1 | Q33: 0.0 % | R33: 27 | S33: 53 | T33: 50.9 %
